[Event "December 5 Late 2023"]
[Site "https://www.chess.com"]
[Date "2023.12.05"]
[Round "6"]
[White "Solon, Nathan"]
[Black "Dilmukhametov, Artur"]
[Result "1-0"]
[Board "78"]
[TimeControl "180+1"]
[WhiteFideId "2017229"]
[BlackFideId "24179922"]
[WhiteElo "2674"]
[BlackElo "2480"]
[WhiteTeam "USA"]
[BlackTeam "RUS"]
[WhiteClock "0:00:13"]
[BlackClock "0:00:08"]

1. d4 {[%clk 0:03:00]}  Nf6 {[%clk 0:02:59]} 2. Bf4 {[%clk 0:03:00]}  g6 {[%clk 0:02:59]} 3. Nf3 {[%clk 0:02:59]}  Bg7 {[%clk 0:02:58]} 4. c3 {[%clk 0:02:58]}  d5 {[%clk 0:02:58]} 5. h3 {[%clk 0:02:55]}  O-O {[%clk 0:02:58]} 6. e3 {[%clk 0:02:55]}  c5 {[%clk 0:02:58]} 7. Be2 {[%clk 0:02:55]}  Nc6 {[%clk 0:02:58]} 8. Nbd2 {[%clk 0:02:55]}  Qb6 {[%clk 0:02:50]} 9. Qb3 {[%clk 0:02:54]}  c4 {[%clk 0:02:44]} 10. Qa3 {[%clk 0:02:53]}  Re8 {[%clk 0:02:33]} 11. b3 {[%clk 0:02:54]}  cxb3 {[%clk 0:02:23]} 12. axb3 {[%clk 0:02:54]}  Bd7 {[%clk 0:02:15]} 13. b4 {[%clk 0:02:49]}  a6 {[%clk 0:02:12]} 14. O-O {[%clk 0:02:46]}  Na7 {[%clk 0:02:07]} 15. c4 {[%clk 0:02:32]}  e6 {[%clk 0:01:47]} 16. Ne5 {[%clk 0:02:08]}  Qd8 {[%clk 0:01:23]} 17. b5 {[%clk 0:01:54]}  axb5 {[%clk 0:00:53]} 18. c5 {[%clk 0:01:51]}  Nc6 {[%clk 0:00:43]} 19. Qb2 {[%clk 0:01:50]}  b4 {[%clk 0:00:38]} 20. Rxa8 {[%clk 0:01:37]}  Qxa8 {[%clk 0:00:36]} 21. Ra1 {[%clk 0:01:37]}  Qd8 {[%clk 0:00:31]} 22. Nd3 {[%clk 0:01:19]}  Ne4 {[%clk 0:00:19]} 23. Nxe4 {[%clk 0:01:11]}  dxe4 {[%clk 0:00:20]} 24. Nxb4 {[%clk 0:01:11]}  e5 {[%clk 0:00:19]} 25. Nxc6 {[%clk 0:01:08]}  Bxc6 {[%clk 0:00:19]} 26. Bxe5 {[%clk 0:01:06]}  Bxe5 {[%clk 0:00:18]} 27. dxe5 {[%clk 0:01:07]}  Qd5 {[%clk 0:00:18]} 28. Qd4 {[%clk 0:00:57]}  Qxe5 {[%clk 0:00:15]} 29. Bc4 {[%clk 0:00:57]}  Qxd4 {[%clk 0:00:13]} 30. exd4 {[%clk 0:00:58]}  Rd8 {[%clk 0:00:14]} 31. Rd1 {[%clk 0:00:57]}  Ba4 {[%clk 0:00:12]} 32. Rd2 {[%clk 0:00:53]}  Kf8 {[%clk 0:00:11]} 33. Kf1 {[%clk 0:00:51]}  Ke7 {[%clk 0:00:09]} 34. Ke2 {[%clk 0:00:51]}  f5 {[%clk 0:00:09]} 35. Ke3 {[%clk 0:00:51]}  Kf6 {[%clk 0:00:09]} 36. g3 {[%clk 0:00:26]}  Be8 {[%clk 0:00:09]} 37. Rb2 {[%clk 0:00:23]}  Bc6 {[%clk 0:00:08]} 38. Rb6 {[%clk 0:00:22]}  Ra8 {[%clk 0:00:08]} 39. d5 {[%clk 0:00:21]}  Ra3+ {[%clk 0:00:08]} 40. Ke2 {[%clk 0:00:20]}  Rc3 {[%clk 0:00:03]} 41. dxc6 {[%clk 0:00:17]}  bxc6 {[%clk 0:00:02]} 42. Rxc6+ {[%clk 0:00:17]}  Ke5 {[%clk 0:00:03]} 43. Bg8 {[%clk 0:00:17]}  Kd4 {[%clk 0:00:03]} 44. Rc8 {[%clk 0:00:13]}  Rc2+ {[%clk 0:00:03]} 45. Kf1 {[%clk 0:00:13]}  e3 {[%clk 0:00:03]} 46. Rd8+ {[%clk 0:00:13]}  Ke4 {[%clk 0:00:03]} 47. Re8+ {[%clk 0:00:12]}  Kd4 {[%clk 0:00:02]} 48. Rxe3 {[%clk 0:00:11]}  Kxc5 {[%clk 0:00:02]} 49. Bxh7 {[%clk 0:00:11]}  Rc1+ {[%clk 0:00:03]} 50. Kg2 {[%clk 0:00:10]}  g5 {[%clk 0:00:03]} 51. Bxf5 {[%clk 0:00:10]}  Kd4 {[%clk 0:00:04]} 52. Bg4 {[%clk 0:00:10]}  Rc7 {[%clk 0:00:05]} 53. Rf3 {[%clk 0:00:10]}  Rg7 {[%clk 0:00:06]} 54. Rf5 {[%clk 0:00:10]}  Ke4 {[%clk 0:00:05]} 55. Rf8 {[%clk 0:00:09]}  Ke5 {[%clk 0:00:04]} 56. Ra8 {[%clk 0:00:09]}  Kd6 {[%clk 0:00:04]} 57. Ra6+ {[%clk 0:00:08]}  Ke5 {[%clk 0:00:05]} 58. Ra5+ {[%clk 0:00:09]}  Kd6 {[%clk 0:00:05]} 59. Bf3 {[%clk 0:00:09]}  Ke6 {[%clk 0:00:03]} 60. Be4 {[%clk 0:00:08]}  Kf6 {[%clk 0:00:02]} 61. Kf3 {[%clk 0:00:08]}  Ke6 {[%clk 0:00:02]} 62. Kg4 {[%clk 0:00:08]}  Kf6 {[%clk 0:00:02]} 63. Rf5+ {[%clk 0:00:07]}  Ke6 {[%clk 0:00:02]} 64. Rxg5 {[%clk 0:00:08]}  Rf7 {[%clk 0:00:02]} 65. f4 {[%clk 0:00:08]}  Kf6 {[%clk 0:00:01]} 66. Rf5+ {[%clk 0:00:08]}  Kg7 {[%clk 0:00:01]} 67. Rxf7+ {[%clk 0:00:09]}  Kxf7 {[%clk 0:00:02]} 68. Kg5 {[%clk 0:00:10]}  Kg7 {[%clk 0:00:03]} 69. h4 {[%clk 0:00:10]}  Kh8 {[%clk 0:00:04]} 70. h5 {[%clk 0:00:11]}  Kg7 {[%clk 0:00:05]} 71. h6+ {[%clk 0:00:11]}  Kh8 {[%clk 0:00:06]} 72. Kh5 {[%clk 0:00:10]}  Kg8 {[%clk 0:00:06]} 73. g4 {[%clk 0:00:11]}  Kh8 {[%clk 0:00:07]} 74. g5 {[%clk 0:00:11]}  Kg8 {[%clk 0:00:08]} 75. g6 {[%clk 0:00:12]}  Kh8 {[%clk 0:00:08]} 76. g7+ {[%clk 0:00:12]}  Kg8 {[%clk 0:00:08]} 77. Bd5+ {[%clk 0:00:12]}  Kh7 {[%clk 0:00:08]} 78. g8=Q# {[%clk 0:00:13]} 1-0

[Event "December 5 Late 2023"]
[Site "https://www.chess.com"]
[Date "2023.12.05"]
[Round "6"]
[White "Vlassov, Nikolai"]
[Black "Stojanovski, Sandi"]
[Result "1-0"]
[Board "79"]
[TimeControl "180+1"]
[WhiteFideId "4103360"]
[BlackFideId "1403249"]
[WhiteElo "2648"]
[BlackElo "2519"]
[WhiteTeam "FID"]
[BlackTeam "DEN"]
[WhiteClock "0:00:05"]
[BlackClock "0:00:03"]

1. e4 {[%clk 0:03:00]}  d6 {[%clk 0:03:00]} 2. f4 {[%clk 0:03:00]}  Nf6 {[%clk 0:03:01]} 3. Nc3 {[%clk 0:03:00]}  g6 {[%clk 0:03:01]} 4. Nf3 {[%clk 0:03:00]}  Bg7 {[%clk 0:03:01]} 5. d4 {[%clk 0:02:58]}  O-O {[%clk 0:03:01]} 6. e5 {[%clk 0:02:57]}  dxe5 {[%clk 0:03:00]} 7. fxe5 {[%clk 0:02:57]}  Nd5 {[%clk 0:02:59]} 8. Bc4 {[%clk 0:02:56]}  Nxc3 {[%clk 0:02:59]} 9. bxc3 {[%clk 0:02:56]}  c5 {[%clk 0:03:00]} 10. O-O {[%clk 0:02:56]}  Bg4 {[%clk 0:03:00]} 11. Be3 {[%clk 0:02:53]}  Nc6 {[%clk 0:02:59]} 12. h3 {[%clk 0:02:50]}  Bxf3 {[%clk 0:02:57]} 13. Rxf3 {[%clk 0:02:48]}  Rc8 {[%clk 0:02:53]} 14. e6 {[%clk 0:02:30]}  f5 {[%clk 0:02:45]} 15. d5 {[%clk 0:02:17]}  Ne5 {[%clk 0:02:42]} 16. Qe2 {[%clk 0:02:02]}  Nxf3+ {[%clk 0:02:41]} 17. Qxf3 {[%clk 0:02:02]}  Bxc3 {[%clk 0:02:35]} 18. Rd1 {[%clk 0:02:02]}  Be5 {[%clk 0:02:32]} 19. Bh6 {[%clk 0:01:50]}  Bg7 {[%clk 0:01:58]} 20. Bxg7 {[%clk 0:01:48]}  Kxg7 {[%clk 0:01:59]} 21. Qc3+ {[%clk 0:01:48]}  Rf6 {[%clk 0:01:59]} 22. g4 {[%clk 0:01:42]}  fxg4 {[%clk 0:01:49]} 23. hxg4 {[%clk 0:01:41]}  g5 {[%clk 0:01:36]} 24. Qe5 {[%clk 0:01:02]}  Qd6 {[%clk 0:01:24]} 25. Qxd6 {[%clk 0:00:43]}  exd6 {[%clk 0:01:23]} 26. Bb5 {[%clk 0:00:43]}  Kf8 {[%clk 0:01:18]} 27. Kg2 {[%clk 0:00:43]}  Ke7 {[%clk 0:01:17]} 28. Bd3 {[%clk 0:00:36]}  h6 {[%clk 0:01:15]} 29. c4 {[%clk 0:00:26]}  Rcf8 {[%clk 0:01:13]} 30. Bf5 {[%clk 0:00:26]}  h5 {[%clk 0:01:06]} 31. Rh1 {[%clk 0:00:24]}  h4 {[%clk 0:01:05]} 32. Rb1 {[%clk 0:00:21]}  b6 {[%clk 0:01:04]} 33. a4 {[%clk 0:00:20]}  Rb8 {[%clk 0:00:57]} 34. a5 {[%clk 0:00:20]}  Rb7 {[%clk 0:00:56]} 35. Kh3 {[%clk 0:00:19]}  Kd8 {[%clk 0:00:53]} 36. Kg2 {[%clk 0:00:19]}  Rf8 {[%clk 0:00:48]} 37. Kf3 {[%clk 0:00:16]}  Re8 {[%clk 0:00:44]} 38. Ke4 {[%clk 0:00:15]}  Kc7 {[%clk 0:00:41]} 39. Bg6 {[%clk 0:00:14]}  Re7 {[%clk 0:00:36]} 40. a6 {[%clk 0:00:13]}  Rb8 {[%clk 0:00:36]} 41. Kf5 {[%clk 0:00:14]}  Rf8+ {[%clk 0:00:35]} 42. Bf7 {[%clk 0:00:13]}  Rfxf7+ {[%clk 0:00:21]} 43. exf7 {[%clk 0:00:13]}  Rxf7+ {[%clk 0:00:22]} 44. Kxg5 {[%clk 0:00:14]}  h3 {[%clk 0:00:22]} 45. Rh1 {[%clk 0:00:13]}  Rf3 {[%clk 0:00:21]} 46. Kh6 {[%clk 0:00:13]}  Rc3 {[%clk 0:00:14]} 47. g5 {[%clk 0:00:13]}  Rxc4 {[%clk 0:00:14]} 48. Rxh3 {[%clk 0:00:13]}  Rg4 {[%clk 0:00:12]} 49. g6 {[%clk 0:00:13]}  b5 {[%clk 0:00:12]} 50. g7 {[%clk 0:00:13]}  b4 {[%clk 0:00:11]} 51. Rh5 {[%clk 0:00:12]}  Rxg7 {[%clk 0:00:10]} 52. Kxg7 {[%clk 0:00:12]}  Kb6 {[%clk 0:00:11]} 53. Rh6 {[%clk 0:00:11]}  c4 {[%clk 0:00:09]} 54. Rxd6+ {[%clk 0:00:11]}  Kc5 {[%clk 0:00:09]} 55. Rd7 {[%clk 0:00:10]}  b3 {[%clk 0:00:10]} 56. Rxa7 {[%clk 0:00:10]}  b2 {[%clk 0:00:09]} 57. Rb7 {[%clk 0:00:10]}  c3 {[%clk 0:00:09]} 58. a7 {[%clk 0:00:10]}  c2 {[%clk 0:00:07]} 59. a8=Q {[%clk 0:00:10]}  b1=Q {[%clk 0:00:05]} 60. Qc8+ {[%clk 0:00:07]}  Kd4 {[%clk 0:00:05]} 61. Qg4+ {[%clk 0:00:06]}  Kc3 {[%clk 0:00:04]} 62. Qf3+ {[%clk 0:00:05]}  Kd2 {[%clk 0:00:04]} 63. Qf4+ {[%clk 0:00:05]}  Kd1 {[%clk 0:00:04]} 64. Qd4+ {[%clk 0:00:04]}  Ke2 {[%clk 0:00:03]} 65. Qe4+ {[%clk 0:00:05]}  Kd2 {[%clk 0:00:03]} 66. Rxb1 {[%clk 0:00:05]}  cxb1=Q {[%clk 0:00:02]} 67. Qxb1 {[%clk 0:00:05]}  Kc3 {[%clk 0:00:03]} 68. d6 {[%clk 0:00:05]} 1-0

[Event "December 5 Late 2023"]
[Site "https://www.chess.com"]
[Date "2023.12.05"]
[Round "6"]
[White "Goltsev, Dmitry"]
[Black "Zimmermann, Ulrich"]
[Result "1-0"]
[Board "80"]
[TimeControl "180+1"]
[WhiteFideId "24176710"]
[BlackFideId "24654523"]
[WhiteElo "2647"]
[BlackElo "2428"]
[WhiteTeam "RUS"]
[BlackTeam "GER"]
[WhiteClock "0:00:35"]
[BlackClock "0:00:57"]

1. e4 {[%clk 0:03:00]}  c5 {[%clk 0:02:58]} 2. Nf3 {[%clk 0:03:00]}  g6 {[%clk 0:02:59]} 3. d4 {[%clk 0:03:00]}  cxd4 {[%clk 0:02:59]} 4. Qxd4 {[%clk 0:03:01]}  Nf6 {[%clk 0:02:59]} 5. Nc3 {[%clk 0:03:01]}  Nc6 {[%clk 0:03:00]} 6. Qa4 {[%clk 0:03:02]}  d6 {[%clk 0:02:59]} 7. e5 {[%clk 0:03:02]}  dxe5 {[%clk 0:02:59]} 8. Nxe5 {[%clk 0:03:03]}  Nd7 {[%clk 0:02:53]} 9. Nxc6 {[%clk 0:02:59]}  bxc6 {[%clk 0:02:54]} 10. Qxc6 {[%clk 0:02:59]}  Rb8 {[%clk 0:02:54]} 11. Nd5 {[%clk 0:02:49]}  Bg7 {[%clk 0:02:53]} 12. Nc7+ {[%clk 0:02:42]}  Kf8 {[%clk 0:02:50]} 13. Bf4 {[%clk 0:02:41]}  Rxb2 {[%clk 0:02:41]} 14. Rd1 {[%clk 0:02:32]}  Rb4 {[%clk 0:02:38]} 15. Bg3 {[%clk 0:02:17]}  h5 {[%clk 0:02:28]} 16. Bc4 {[%clk 0:01:42]}  Bc3+ {[%clk 0:02:12]} 17. Kf1 {[%clk 0:01:39]}  Bf6 {[%clk 0:02:13]} 18. Bxf7 {[%clk 0:01:21]}  Kxf7 {[%clk 0:01:50]} 19. Qd5+ {[%clk 0:01:20]}  Kg7 {[%clk 0:01:46]} 20. Ne6+ {[%clk 0:01:20]}  Kh7 {[%clk 0:01:42]} 21. Nxd8 {[%clk 0:01:20]}  Rxd8 {[%clk 0:01:43]} 22. h4 {[%clk 0:01:13]}  Bb7 {[%clk 0:01:14]} 23. Qf7+ {[%clk 0:01:10]}  Kh6 {[%clk 0:01:12]} 24. Re1 {[%clk 0:00:45]}  Nf8 {[%clk 0:01:03]} 25. c4 {[%clk 0:00:36]}  Rb2 {[%clk 0:00:57]} 26. Bf4+ {[%clk 0:00:35]} 1-0

[Event "December 5 Late 2023"]
[Site "https://www.chess.com"]
[Date "2023.12.05"]
[Round "6"]
[White "Saito, Vinicius"]
[Black "Miranda, Rafael"]
[Result "1-0"]
[Board "82"]
[TimeControl "180+1"]
[WhiteFideId "2113384"]
[BlackFideId "130990"]
[WhiteElo "2419"]
[BlackElo "2599"]
[WhiteTeam "BRA"]
[BlackTeam "ARG"]
[WhiteClock "0:00:16"]
[BlackClock "0:00:35"]

1. e4 {[%clk 0:03:00]}  c5 {[%clk 0:02:57]} 2. Nf3 {[%clk 0:03:00]}  d6 {[%clk 0:02:56]} 3. Bb5+ {[%clk 0:03:00]}  Bd7 {[%clk 0:02:55]} 4. a4 {[%clk 0:02:59]}  Nf6 {[%clk 0:02:55]} 5. Nc3 {[%clk 0:02:59]}  g6 {[%clk 0:02:55]} 6. d3 {[%clk 0:02:58]}  Bg7 {[%clk 0:02:56]} 7. O-O {[%clk 0:02:58]}  O-O {[%clk 0:02:57]} 8. h3 {[%clk 0:02:58]}  Nc6 {[%clk 0:02:57]} 9. Re1 {[%clk 0:02:56]}  e5 {[%clk 0:02:57]} 10. Bg5 {[%clk 0:02:53]}  h6 {[%clk 0:02:57]} 11. Bxf6 {[%clk 0:02:52]}  Bxf6 {[%clk 0:02:58]} 12. Nd5 {[%clk 0:02:52]}  Bg7 {[%clk 0:02:58]} 13. c3 {[%clk 0:02:52]}  a6 {[%clk 0:02:56]} 14. Bc4 {[%clk 0:02:51]}  Kh7 {[%clk 0:02:53]} 15. b4 {[%clk 0:02:44]}  cxb4 {[%clk 0:02:47]} 16. cxb4 {[%clk 0:02:44]}  Be6 {[%clk 0:02:05]} 17. Rb1 {[%clk 0:02:19]}  Rc8 {[%clk 0:02:02]} 18. a5 {[%clk 0:02:09]}  Bxd5 {[%clk 0:01:57]} 19. Bxd5 {[%clk 0:02:09]}  Rc7 {[%clk 0:01:56]} 20. Qd2 {[%clk 0:02:01]}  Qf6 {[%clk 0:01:49]} 21. b5 {[%clk 0:01:55]}  axb5 {[%clk 0:01:49]} 22. Rxb5 {[%clk 0:01:55]}  h5 {[%clk 0:01:47]} 23. Reb1 {[%clk 0:01:45]}  Qe7 {[%clk 0:01:37]} 24. Rb6 {[%clk 0:01:38]}  Bh6 {[%clk 0:01:28]} 25. Qd1 {[%clk 0:01:35]}  Nxa5 {[%clk 0:01:27]} 26. h4 {[%clk 0:01:30]}  Nc6 {[%clk 0:01:21]} 27. Qb3 {[%clk 0:01:25]}  Nd8 {[%clk 0:01:13]} 28. Qb4 {[%clk 0:01:18]}  Nc6 {[%clk 0:01:08]} 29. Qb3 {[%clk 0:01:15]}  Na5 {[%clk 0:01:07]} 30. Qb4 {[%clk 0:01:13]}  Rc5 {[%clk 0:01:02]} 31. Rb5 {[%clk 0:00:57]}  Qc7 {[%clk 0:01:00]} 32. Rxc5 {[%clk 0:00:47]}  dxc5 {[%clk 0:00:59]} 33. Qb6 {[%clk 0:00:44]}  Qxb6 {[%clk 0:00:59]} 34. Rxb6 {[%clk 0:00:44]}  Nc6 {[%clk 0:00:36]} 35. Rxb7 {[%clk 0:00:20]}  Nd8 {[%clk 0:00:35]} 36. Rd7 {[%clk 0:00:19]}  Bg7 {[%clk 0:00:31]} 37. Ng5+ {[%clk 0:00:19]}  Kg8 {[%clk 0:00:30]} 38. g3 {[%clk 0:00:16]}  Bf6 {[%clk 0:00:31]} 39. Nf3 {[%clk 0:00:16]}  Ne6 {[%clk 0:00:31]} 40. Bxe6 {[%clk 0:00:16]}  fxe6 {[%clk 0:00:32]} 41. Rd6 {[%clk 0:00:16]}  Rd8 {[%clk 0:00:32]} 42. Rxd8+ {[%clk 0:00:16]}  Bxd8 {[%clk 0:00:31]} 43. Nxe5 {[%clk 0:00:16]}  Kg7 {[%clk 0:00:31]} 44. Kf1 {[%clk 0:00:16]}  Bf6 {[%clk 0:00:32]} 45. Nd7 {[%clk 0:00:16]}  Bd4 {[%clk 0:00:32]} 46. Ke2 {[%clk 0:00:16]}  e5 {[%clk 0:00:32]} 47. Nb6 {[%clk 0:00:15]}  g5 {[%clk 0:00:32]} 48. hxg5 {[%clk 0:00:15]}  Kg6 {[%clk 0:00:33]} 49. f4 {[%clk 0:00:15]}  exf4 {[%clk 0:00:34]} 50. gxf4 {[%clk 0:00:15]}  h4 {[%clk 0:00:35]} 51. Kf3 {[%clk 0:00:16]}  h3 {[%clk 0:00:34]} 52. Kg3 {[%clk 0:00:16]}  Be3 {[%clk 0:00:35]} 53. Nd5 {[%clk 0:00:15]}  Bd2 {[%clk 0:00:34]} 54. Kxh3 {[%clk 0:00:15]}  Bxf4 {[%clk 0:00:34]} 55. Nxf4+ {[%clk 0:00:15]}  Kxg5 {[%clk 0:00:35]} 56. Kg3 {[%clk 0:00:15]}  Kf6 {[%clk 0:00:34]} 57. Kf3 {[%clk 0:00:15]}  Ke5 {[%clk 0:00:35]} 58. Ke3 {[%clk 0:00:16]}  c4 {[%clk 0:00:36]} 59. d4+ {[%clk 0:00:16]}  Kd6 {[%clk 0:00:37]} 60. Kd2 {[%clk 0:00:16]}  Kc6 {[%clk 0:00:37]} 61. Kc3 {[%clk 0:00:16]}  Kb5 {[%clk 0:00:35]} 62. Ne6 {[%clk 0:00:16]} 1-0

[Event "December 5 Late 2023"]
[Site "https://www.chess.com"]
[Date "2023.12.05"]
[Round "6"]
[White "Fernandez Bustamante, Leancy B."]
[Black "Garcia Ramos, Daniel"]
[Result "0-1"]
[Board "83"]
[TimeControl "180+1"]
[WhiteFideId "3523870"]
[BlackFideId "32010311"]
[WhiteElo "2401"]
[BlackElo "2584"]
[WhiteTeam "CUB"]
[BlackTeam "ESP"]
[WhiteClock "0:00:00"]
[BlackClock "0:00:05"]

1. e4 {[%clk 0:03:00]}  c6 {[%clk 0:02:59]} 2. d4 {[%clk 0:02:58]}  d5 {[%clk 0:02:58]} 3. exd5 {[%clk 0:02:59]}  cxd5 {[%clk 0:02:58]} 4. h3 {[%clk 0:02:55]}  Nc6 {[%clk 0:02:56]} 5. Nf3 {[%clk 0:02:54]}  Nf6 {[%clk 0:02:55]} 6. c3 {[%clk 0:02:54]}  Bf5 {[%clk 0:02:55]} 7. Bd3 {[%clk 0:02:54]}  Bxd3 {[%clk 0:02:53]} 8. Qxd3 {[%clk 0:02:55]}  e6 {[%clk 0:02:54]} 9. O-O {[%clk 0:02:55]}  Bd6 {[%clk 0:02:52]} 10. Bg5 {[%clk 0:02:54]}  Qc7 {[%clk 0:02:51]} 11. Nbd2 {[%clk 0:02:50]}  Bf4 {[%clk 0:02:39]} 12. Rfe1 {[%clk 0:02:45]}  Bxg5 {[%clk 0:02:15]} 13. Nxg5 {[%clk 0:02:44]}  O-O {[%clk 0:02:12]} 14. Nf1 {[%clk 0:02:35]}  Qf4 {[%clk 0:02:06]} 15. Nf3 {[%clk 0:02:26]}  Ne4 {[%clk 0:02:04]} 16. g3 {[%clk 0:02:20]}  Qh6 {[%clk 0:02:04]} 17. Kg2 {[%clk 0:02:18]}  f5 {[%clk 0:02:04]} 18. N1d2 {[%clk 0:02:09]}  Rf6 {[%clk 0:01:56]} 19. Re2 {[%clk 0:01:56]}  Qh5 {[%clk 0:01:53]} 20. Ne5 {[%clk 0:01:49]}  Nxe5 {[%clk 0:01:11]} 21. dxe5 {[%clk 0:01:48]}  Rff8 {[%clk 0:01:10]} 22. c4 {[%clk 0:01:17]}  Rad8 {[%clk 0:01:07]} 23. cxd5 {[%clk 0:00:56]}  Rxd5 {[%clk 0:01:05]} 24. Qf3 {[%clk 0:00:48]}  Qxf3+ {[%clk 0:01:04]} 25. Nxf3 {[%clk 0:00:49]}  Rc8 {[%clk 0:01:04]} 26. Rae1 {[%clk 0:00:42]}  a5 {[%clk 0:01:02]} 27. Re3 {[%clk 0:00:39]}  b5 {[%clk 0:00:56]} 28. R1e2 {[%clk 0:00:39]}  b4 {[%clk 0:00:54]} 29. a3 {[%clk 0:00:16]}  Rc4 {[%clk 0:00:41]} 30. h4 {[%clk 0:00:15]}  h6 {[%clk 0:00:39]} 31. h5 {[%clk 0:00:14]}  Kf7 {[%clk 0:00:35]} 32. Rb3 {[%clk 0:00:10]}  Ke7 {[%clk 0:00:28]} 33. Nh4 {[%clk 0:00:09]}  Nd2 {[%clk 0:00:19]} 34. Rbe3 {[%clk 0:00:06]}  Kd7 {[%clk 0:00:12]} 35. Ng6 {[%clk 0:00:07]}  Rc2 {[%clk 0:00:09]} 36. Nf8+ {[%clk 0:00:06]}  Ke7 {[%clk 0:00:08]} 37. Ng6+ {[%clk 0:00:06]}  Kf7 {[%clk 0:00:09]} 38. Nf4 {[%clk 0:00:06]}  Rd4 {[%clk 0:00:09]} 39. Re1 {[%clk 0:00:02]}  Rxb2 {[%clk 0:00:08]} 40. axb4 {[%clk 0:00:02]}  axb4 {[%clk 0:00:08]} 41. R1e2 {[%clk 0:00:02]}  Nc4 {[%clk 0:00:05]} 42. Rf3 {[%clk 0:00:01]}  Rxe2 {[%clk 0:00:04]} 43. Nxe2 {[%clk 0:00:02]}  Rd2 {[%clk 0:00:04]} 44. Nf4 {[%clk 0:00:01]}  Nxe5 {[%clk 0:00:04]} 45. Rb3 {[%clk 0:00:00]}  Ng4 {[%clk 0:00:05]} 0-1

[Event "December 5 Late 2023"]
[Site "https://www.chess.com"]
[Date "2023.12.05"]
[Round "6"]
[White "Sarkar, Justin"]
[Black "Krzywda, Andrzej"]
[Result "1-0"]
[Board "88"]
[TimeControl "180+1"]
[WhiteFideId "2010011"]
[BlackFideId "1114565"]
[WhiteElo "2301"]
[BlackElo "2524"]
[WhiteTeam "USA"]
[BlackTeam "POL"]
[WhiteClock "0:00:04"]
[BlackClock "0:00:11"]

1. e4 {[%clk 0:02:44]}  e5 {[%clk 0:03:00]} 2. Bc4 {[%clk 0:02:40]}  Nf6 {[%clk 0:03:00]} 3. d3 {[%clk 0:02:39]}  c6 {[%clk 0:03:00]} 4. Qe2 {[%clk 0:02:37]}  Be7 {[%clk 0:02:43]} 5. Nf3 {[%clk 0:02:33]}  d6 {[%clk 0:02:34]} 6. O-O {[%clk 0:02:31]}  O-O {[%clk 0:02:34]} 7. a4 {[%clk 0:02:13]}  Nbd7 {[%clk 0:02:27]} 8. Nc3 {[%clk 0:02:03]}  b6 {[%clk 0:02:18]} 9. d4 {[%clk 0:01:58]}  a6 {[%clk 0:02:17]} 10. d5 {[%clk 0:01:41]}  c5 {[%clk 0:02:16]} 11. Nd2 {[%clk 0:01:27]}  g6 {[%clk 0:02:08]} 12. Bd3 {[%clk 0:01:19]}  Nh5 {[%clk 0:02:05]} 13. g3 {[%clk 0:01:18]}  Ng7 {[%clk 0:02:03]} 14. Nc4 {[%clk 0:01:15]}  Rb8 {[%clk 0:01:42]} 15. Na3 {[%clk 0:01:05]}  c4 {[%clk 0:01:39]} 16. Nxc4 {[%clk 0:00:56]}  Nc5 {[%clk 0:01:37]} 17. f4 {[%clk 0:00:51]}  Bh3 {[%clk 0:01:34]} 18. Rf2 {[%clk 0:00:47]}  exf4 {[%clk 0:01:26]} 19. Bxf4 {[%clk 0:00:46]}  Nh5 {[%clk 0:01:23]} 20. Bh6 {[%clk 0:00:45]}  Re8 {[%clk 0:01:13]} 21. Qf3 {[%clk 0:00:40]}  Bf6 {[%clk 0:00:55]} 22. g4 {[%clk 0:00:33]}  Bxg4 {[%clk 0:00:55]} 23. Qxg4 {[%clk 0:00:33]}  Bd4 {[%clk 0:00:55]} 24. Be3 {[%clk 0:00:27]}  Bg7 {[%clk 0:00:55]} 25. Raf1 {[%clk 0:00:25]}  Rb7 {[%clk 0:00:47]} 26. Kh1 {[%clk 0:00:25]}  Ra7 {[%clk 0:00:37]} 27. Bg5 {[%clk 0:00:22]}  Qb8 {[%clk 0:00:30]} 28. Ne2 {[%clk 0:00:19]}  b5 {[%clk 0:00:30]} 29. Na5 {[%clk 0:00:17]}  Qb6 {[%clk 0:00:25]} 30. Nc6 {[%clk 0:00:14]}  Rc7 {[%clk 0:00:26]} 31. a5 {[%clk 0:00:12]}  Qb7 {[%clk 0:00:23]} 32. b4 {[%clk 0:00:11]}  Nd7 {[%clk 0:00:17]} 33. Rxf7 {[%clk 0:00:09]}  Ne5 {[%clk 0:00:16]} 34. Nxe5 {[%clk 0:00:10]}  Bxe5 {[%clk 0:00:15]} 35. Rxc7 {[%clk 0:00:09]}  Qxc7 {[%clk 0:00:15]} 36. Qf3 {[%clk 0:00:09]}  Bg7 {[%clk 0:00:14]} 37. Ng3 {[%clk 0:00:07]}  Rf8 {[%clk 0:00:14]} 38. Qg2 {[%clk 0:00:06]}  Re8 {[%clk 0:00:14]} 39. Nxh5 {[%clk 0:00:06]}  gxh5 {[%clk 0:00:14]} 40. Bh6 {[%clk 0:00:06]}  Re7 {[%clk 0:00:12]} 41. Rf2 {[%clk 0:00:05]}  Qc3 {[%clk 0:00:11]} 42. Bxg7 {[%clk 0:00:04]}  Rxg7 {[%clk 0:00:12]} 43. Qf1 {[%clk 0:00:04]}  h6 {[%clk 0:00:10]} 44. Rf8+ {[%clk 0:00:04]}  Kh7 {[%clk 0:00:11]} 45. e5+ {[%clk 0:00:04]}  Rg6 {[%clk 0:00:11]} 46. Bxg6+ {[%clk 0:00:03]}  Kxg6 {[%clk 0:00:11]} 47. Qf5+ {[%clk 0:00:03]}  Kg7 {[%clk 0:00:11]} 48. Qf7# {[%clk 0:00:04]} 1-0

[Event "December 5 Late 2023"]
[Site "https://www.chess.com"]
[Date "2023.12.05"]
[Round "6"]
[White "Paragua, Megan Althea"]
[Black "Grutter, Tim"]
[Result "1-0"]
[Board "89"]
[TimeControl "180+1"]
[WhiteFideId "30973007"]
[BlackFideId "1057472"]
[WhiteElo "2293"]
[BlackElo "2520"]
[WhiteTeam "USA"]
[BlackTeam "NED"]
[WhiteClock "0:01:37"]
[BlackClock "0:01:14"]

1. d4 {[%clk 0:02:52]}  d6 {[%clk 0:02:59]} 2. e3 {[%clk 0:02:52]}  e5 {[%clk 0:02:57]} 3. dxe5 {[%clk 0:02:51]}  dxe5 {[%clk 0:02:58]} 4. Qxd8+ {[%clk 0:02:48]}  Kxd8 {[%clk 0:02:59]} 5. Nf3 {[%clk 0:02:48]}  f6 {[%clk 0:02:58]} 6. Bc4 {[%clk 0:02:46]}  c6 {[%clk 0:02:58]} 7. O-O {[%clk 0:02:46]}  Kc7 {[%clk 0:02:58]} 8. b3 {[%clk 0:02:45]}  Bg4 {[%clk 0:02:57]} 9. Be2 {[%clk 0:02:44]}  Na6 {[%clk 0:02:49]} 10. Bb2 {[%clk 0:02:39]}  Rd8 {[%clk 0:02:39]} 11. a3 {[%clk 0:02:22]}  Bf5 {[%clk 0:02:29]} 12. Rc1 {[%clk 0:02:14]}  g5 {[%clk 0:02:21]} 13. Bxa6 {[%clk 0:02:11]}  bxa6 {[%clk 0:02:19]} 14. Nxe5 {[%clk 0:02:10]}  Bxc2 {[%clk 0:01:59]} 15. Nf7 {[%clk 0:02:04]}  Bxb1 {[%clk 0:01:49]} 16. Raxb1 {[%clk 0:01:58]}  Bg7 {[%clk 0:01:37]} 17. Nxd8 {[%clk 0:01:55]}  Kxd8 {[%clk 0:01:38]} 18. Rxc6 {[%clk 0:01:54]}  Ne7 {[%clk 0:01:38]} 19. Rd1+ {[%clk 0:01:51]}  Ke8 {[%clk 0:01:38]} 20. Rxa6 {[%clk 0:01:51]}  Kf7 {[%clk 0:01:34]} 21. Rxa7 {[%clk 0:01:48]}  Rc8 {[%clk 0:01:31]} 22. h3 {[%clk 0:01:43]}  Rc2 {[%clk 0:01:30]} 23. Bd4 {[%clk 0:01:42]}  Ke6 {[%clk 0:01:29]} 24. b4 {[%clk 0:01:41]}  Nc6 {[%clk 0:01:14]} 25. Rxg7 {[%clk 0:01:37]} 1-0